fUSD/lending_fUSD_20250806
["ID","MTS","AMOUNT","RATE_DAILY","PERIOD"]
[377638543,1754472447995,1284.98,0.00039271,30]
[377638544,1754472448070,250.0,0.00039271,30]
[377638545,1754472448184,3316.52,0.00039271,30]
[377638546,1754472448251,1284.98,0.00039271,30]
[377638547,1754472448294,3316.52,0.00039271,30]
[377638548,1754472448442,3316.52,0.00039271,30]
[377638549,1754472448487,1284.98,0.00039271,30]
[377638550,1754472448633,206.20894646,0.00039271,30]
[377638551,1754472448896,3316.52,0.00039271,30]
[377638552,1754472449037,1284.98,0.00039271,30]
[377638553,1754472449083,2581.7,0.00039271,30]
[377638554,1754472449258,2581.7,0.00039271,30]
[377638555,1754472449312,3316.52,0.00039271,30]
[377638556,1754472449356,1284.98,0.00039271,30]
[377638557,1754472449398,2581.7,0.00039271,30]
[377638558,1754472449446,2581.7,0.00039271,30]
[377638559,1754472449488,685.88,0.00039271,30]
[377638560,1754472449540,3316.52,0.00039271,30]
[377638561,1754472449587,1284.98,0.00039271,30]
[377638562,1754472449636,400.0,0.00039271,30]
[377638563,1754472449682,2581.7,0.00039271,30]
[377638564,1754472449734,685.88,0.00039271,30]
[377638565,1754472449787,685.88,0.00039271,30]
[377638566,1754472449837,536.89721597,0.00039271,30]
[377638567,1754472449888,2581.7,0.00039271,30]
[377638568,1754472449943,3316.52,0.00039271,30]
[377638569,1754472450021,1284.98,0.00039271,30]
[377638570,1754472450129,685.88,0.00039271,30]
[377638571,1754472450287,2581.7,0.00039271,30]
[377638572,1754472450432,3316.52,0.00039271,30]
[377638573,1754472450872,685.88,0.00039271,30]
[377638574,1754472451006,2581.7,0.00039271,30]
[377638575,1754472451130,2469.61,0.00039271,30]
[377638576,1754472451200,685.88,0.00039271,30]
[377638577,1754472451295,3316.52,0.00039271,30]
[377638578,1754472451343,2581.7,0.00039271,30]
[377638579,1754472451482,1284.98,0.00039271,30]
[377638580,1754472451542,685.88,0.00039271,30]
[377638581,1754472451592,2469.61,0.00039271,30]
[377638582,1754472451645,2581.7,0.00039271,30]
[377638583,1754472451692,3316.52,0.00039271,30]
[377638584,1754472451738,2469.61,0.00039271,30]
[377638585,1754472451844,1284.98,0.00039271,30]
[377638586,1754472451931,2581.7,0.00039271,30]
[377638587,1754472451976,2469.61,0.00039271,30]
[377638588,1754472452022,2581.7,0.00039271,30]
[377638589,1754472452068,2469.61,0.00039271,30]
[377638590,1754472452130,2581.7,0.00039271,30]
[377638591,1754472452174,2469.61,0.00039271,30]
[377638592,1754472452217,3316.52,0.00039271,30]
[377638593,1754472452262,1284.98,0.00039271,30]
[377638594,1754472452330,2581.7,0.00039271,30]
[377638595,1754472452376,2469.61,0.00039271,30]
[377638599,1754472452517,1284.98,0.00039271,30]
[377638602,1754472452565,3316.52,0.00039271,30]
[377638605,1754472452611,2581.7,0.00039271,30]
[377638608,1754472452656,2469.61,0.00039271,30]
[377638614,1754472452759,2469.61,0.00039271,30]
[377638617,1754472452803,2581.7,0.00039271,30]
[377638622,1754472453772,1284.98,0.00039271,30]
[377638623,1754472453828,2469.61,0.00039271,30]
[377638624,1754472454234,2581.7,0.00039271,30]
[377638625,1754472454284,685.88,0.00039271,30]
[377638626,1754472454332,3316.52,0.00039271,30]
[377638627,1754472454386,2581.7,0.00039271,30]
[377638628,1754472454432,2469.61,0.00039271,30]
[377638629,1754472454478,685.88,0.00039271,30]
[377638630,1754472454528,1285.11424073,0.00039271,30]
[377638631,1754472454580,921.77,0.00039271,30]
[377638632,1754472454625,2581.7,0.00039271,30]
[377638633,1754472454673,2469.61,0.00039271,30]
[377638634,1754472454721,685.88,0.00039271,30]
[377638635,1754472454773,3316.52,0.00039271,30]
[377638636,1754472454825,921.77,0.00039271,30]
[377638637,1754472454874,2581.7,0.00039271,30]
[377638638,1754472454919,685.88,0.00039271,30]
[377638639,1754472454963,2469.61,0.00039271,30]
[377638640,1754472455093,3316.52,0.00039271,30]
[377638641,1754472455139,921.77,0.00039271,30]
[377638642,1754472455182,2581.7,0.00039271,30]
[377638643,1754472455227,685.88,0.00039271,30]
[377638644,1754472455376,921.77,0.00039271,30]
[377638645,1754472455424,2581.7,0.00039271,30]
[377638646,1754472455467,685.88,0.00039271,30]
[377638647,1754472455513,1958.19,0.00039271,30]
[377638648,1754472455561,2469.80935743,0.00039271,30]
[377638649,1754472455613,921.77,0.00039271,30]
[377638650,1754472455660,400.0,0.00039271,30]
[377638651,1754472455705,2581.7,0.00039271,30]
[377638652,1754472455753,685.88,0.00039271,30]
[377638653,1754472455803,1958.19,0.00039271,30]
[377638654,1754472455946,400.0,0.00039271,30]
[377638655,1754472455992,685.88,0.00039271,30]
[377638656,1754472456039,2581.8204487,0.00039271,30]
[377638657,1754472456180,1958.19,0.00039271,30]
[377638658,1754472456226,685.88,0.00039271,30]
[377638659,1754472456270,400.0,0.00039271,30]
[377638660,1754472456322,921.77,0.00039271,30]
[377638661,1754472456365,1958.19,0.00039271,30]
[377638662,1754472456420,400.0,0.00039271,30]
[377638663,1754472456465,685.88,0.00039271,30]
[377638664,1754472456516,400.0,0.00039271,30]
[377638665,1754472456568,921.77,0.00039271,30]
[377638666,1754472456616,1958.19,0.00039271,30]
[377638667,1754472456662,685.88,0.00039271,30]
[377638668,1754472456805,317.95,0.00039271,30]
[377638669,1754472456859,921.77,0.00039271,30]
[377638670,1754472456905,1958.19,0.00039271,30]
[377638671,1754472457044,400.0,0.00039271,30]
[377638672,1754472457091,685.88,0.00039271,30]
[377638673,1754472457137,921.77,0.00039271,30]
[377638674,1754472457180,1958.19,0.00039271,30]
[377638675,1754472457330,400.0,0.00039271,30]
[377638676,1754472457395,685.88,0.00039271,30]
[377638677,1754472457522,921.77,0.00039271,30]
[377638678,1754472457573,400.0,0.00039271,30]
[377638679,1754472457618,400.0,0.00039271,30]
[377638680,1754472457669,685.88,0.00039271,30]
[377638681,1754472457726,921.77,0.00039271,30]
[377638682,1754472457774,400.0,0.00039271,30]
[377638683,1754472457822,400.0,0.00039271,30]
[377638684,1754472457867,685.88,0.00039271,30]
[377638685,1754472457915,921.77,0.00039271,30]
[377638686,1754472457956,400.0,0.00039271,30]
[377638687,1754472458002,400.0,0.00039271,30]
[377638688,1754472458052,685.88,0.00039271,30]
[377638689,1754472458450,3316.52,0.00039271,30]
[377638690,1754472458496,921.77,0.00039271,30]
[377638691,1754472458543,400.0,0.00039271,30]
[377638692,1754472458592,686.09043774,0.00039271,30]
[377638693,1754472458748,921.77,0.00039271,30]
[377638694,1754472458799,462.9,0.00039271,30]
[377638695,1754472458862,400.0,0.00039271,30]
[377638696,1754472458911,921.77,0.00039271,30]
[377638697,1754472459042,400.0,0.00039271,30]
[377638698,1754472459139,921.77,0.00039271,30]
[377638699,1754472459269,400.0,0.00039271,30]
[377638700,1754472459316,921.77,0.00039271,30]
[377638701,1754472459369,400.0,0.00039271,30]
[377638702,1754472459414,921.77,0.00039271,30]
[377638703,1754472459466,1958.19,0.00039271,30]
[377638704,1754472459623,400.0,0.00039271,30]
[377638705,1754472459671,3316.52,0.00039271,30]
[377638706,1754472459721,921.77,0.00039271,30]
[377638707,1754472459770,1958.19,0.00039271,30]
[377638708,1754472459934,400.0,0.00039271,30]
[377638709,1754472459985,400.0,0.00039271,30]
[377638710,1754472460035,1958.19,0.00039271,30]
[377638711,1754472460086,921.77,0.00039271,30]
[377638712,1754472460176,400.0,0.00039271,30]
[377638713,1754472460226,400.0,0.00039271,30]
[377638714,1754472460300,921.77,0.00039271,30]
[377638715,1754472460452,1958.19,0.00039271,30]
[377638716,1754472460536,3316.52,0.00039271,30]
[377638717,1754472460698,921.77,0.00039271,30]
[377638718,1754472460751,369.25763129,0.00039271,30]
[377638719,1754472460800,1958.19,0.00039271,30]
[377638720,1754472460854,3316.65870885,0.00039271,30]
[377638721,1754472460901,921.77,0.00039271,30]
[377638722,1754472460959,1958.19,0.00039271,30]
[377638723,1754472461103,400.0,0.00039271,30]
[377638724,1754472461151,152.55361898,0.00039271,30]
[377638725,1754472461202,921.91544045,0.00039271,30]
[377638726,1754472461254,1958.19,0.00039271,30]
[377638727,1754472461309,1958.19,0.00039271,30]
[377638728,1754472461359,1958.19,0.00039271,30]
[377638729,1754472461419,1958.19,0.00039271,30]
[377638730,1754472461470,1958.19,0.00039271,30]
[377638731,1754472461716,1958.19,0.00039271,30]
[377638732,1754472461922,1958.19,0.00039271,30]
[377638733,1754472462170,1958.19,0.00039271,30]
[377638734,1754472462228,2387.78,0.00039271,30]
[377638735,1754472462276,1958.19,0.00039271,30]
[377638736,1754472462321,71428.07,0.00039271,30]
[377638737,1754472462393,2387.78,0.00039271,30]
[377638738,1754472462840,1958.19,0.00039271,30]
[377638739,1754472462887,71428.07,0.00039271,30]
[377638740,1754472462935,2387.78,0.00039271,30]
[377638741,1754472463110,1958.19086292,0.00039271,30]
[377638742,1754472463183,71428.07,0.00039271,30]
[377638743,1754472463310,2387.78,0.00039271,30]
[377638744,1754472463359,71428.07,0.00039271,30]
[377638745,1754472463541,2387.78,0.00039271,30]
[377638746,1754472464248,71428.07,0.00039271,30]
[377638747,1754472464298,400.0,0.00039271,30]
[377638748,1754472464347,2387.78,0.00039271,30]
[377638749,1754472464406,438.23657193,0.00039271,30]
[377638750,1754472464448,71428.07,0.00039271,30]
[377638751,1754472464494,400.0,0.00039271,30]
[377638752,1754472464538,400.0,0.00039271,30]
[377638753,1754472464585,2387.78,0.00039271,30]
[377638754,1754472464733,400.0,0.00039271,30]
[377638755,1754472464789,71428.07,0.00039271,30]
[377638756,1754472464834,2387.78,0.00039271,30]
[377638757,1754472464877,400.0,0.00039271,30]
[377638758,1754472464921,71428.07,0.00039271,30]
[377638759,1754472464966,2387.78,0.00039271,30]
[377638760,1754472465007,400.0,0.00039271,30]
[377638761,1754472465052,71428.07,0.00039271,30]
[377638762,1754472465113,400.0,0.00039271,30]
[377638763,1754472465331,400.0,0.00039271,30]
[377638764,1754472465375,71428.07,0.00039271,30]
[377638765,1754472465518,71428.07,0.00039271,30]
[377638766,1754472465598,400.0,0.00039271,30]
[377638767,1754472465708,400.0,0.00039271,30]
[377638768,1754472465819,400.0,0.00039271,30]
[377638769,1754472466276,71428.07,0.00039271,30]
[377638770,1754472466322,400.0,0.00039271,30]
[377638771,1754472466372,400.0,0.00039271,30]
[377638772,1754472466416,71428.07,0.00039271,30]
[377638773,1754472466458,400.0,0.00039271,30]
[377638774,1754472466502,400.0,0.00039271,30]
[377638775,1754472466552,400.0,0.00039271,30]
[377638776,1754472466697,400.0,0.00039271,30]
[377638777,1754472466748,400.0,0.00039271,30]
[377638778,1754472466833,32384.07365817,0.00039271,30]
[377638781,1754472488822,1242.92,0.0003013,120]
[377638803,1754472524770,1661.0,0.0003013,120]
[377638809,1754472527879,293.0,0.0003013,120]
[377638828,1754472532507,5114.79238345,0.0001,2]
[377638832,1754472547909,158.22,0.00029741,120]
[377638833,1754472585145,830.0,0.0003013,120]
[377638845,1754472632018,-1001.63,0.00020947,2]
[377638846,1754472632028,-1000.0,0.00023042,4]
[377638847,1754472632038,-250.0,0.00023042,2]
[377638848,1754472632047,-311.83498685,0.0002415,2]
[377638880,1754472635167,-2031.90590522,0.0002415,2]
[377638881,1754472635181,-60.16065082,0.0002415,2]
[377638882,1754472635192,-336.52,0.0002442,2]
[377638883,1754472635202,-1000.0,0.00025427,4]
[377638884,1754472635211,-151.0,0.0002558,2]
[377638885,1754472635220,-336.52,0.0002615,2]
[377638886,1754472635229,-525.75,0.00026316,2]
[377638887,1754472635239,-151.0,0.00027274,2]
[377638888,1754472635249,-474.0,0.0002787,2]
[377638889,1754472635258,-583.0,0.00028008,2]
[377638890,1754472635270,-1200.0,0.00028023,2]
[377638891,1754472635280,-676.46365629,0.00028024,2]
[377638892,1754472635289,-444.0,0.00028146,2]
[377638893,1754472635298,-364.0,0.00028216,2]
[377638894,1754472635309,-266.0,0.00028216,2]
[377638895,1754472635318,-1000.0,0.00028254,4]
[377638896,1754472635328,-155.0,0.00028356,2]
[377638897,1754472635337,-962.0,0.00028496,2]
[377638898,1754472635347,-1617.0,0.00028635,2]
[377638899,1754472635357,-151.0,0.00028968,2]
[377638900,1754472635367,-500.0,0.00029443,2]
[377638901,1754472635378,-150.0,0.00029741,2]
[377638902,1754472635388,-2094.73399328,0.00029875,2]
[377638903,1754472635399,-319.21468529,0.00029905,2]
[377638904,1754472635408,-500.0,0.00029905,2]
[377638905,1754472635418,-500.0,0.00029905,2]
[377638906,1754472635427,-500.0,0.00029905,2]
[377638907,1754472635437,-500.0,0.00029905,2]
[377638908,1754472635447,-199.81564043,0.00029905,2]
[377638909,1754472635456,-500.0,0.00029905,2]
[377638910,1754472635465,-500.0,0.00029905,2]
[377638911,1754472635474,-500.0,0.00029905,2]
[377638912,1754472635484,-500.0,0.00029905,2]
[377638913,1754472635493,-275.02751629,0.00029905,2]
[377638914,1754472635502,-500.0,0.00029905,2]
[377638915,1754472635511,-500.0,0.00029905,2]
[377638916,1754472635521,-500.0,0.00029905,2]
[377638917,1754472635531,-500.0,0.00029905,2]
[377638918,1754472635540,-477.99986962,0.00029905,2]
[377638919,1754472635552,-517.0,0.00029906,2]
[377638920,1754472635561,-150.0,0.00030058,4]
[377638921,1754472635571,-150.0,0.00030058,4]
[377638922,1754472635580,-150.0,0.00030058,4]
[377638923,1754472635590,-179.59502593,0.00030058,4]
[377638924,1754472635599,-150.0,0.00030058,4]
[377638925,1754472635609,-150.0,0.00030058,4]
[377638926,1754472635618,-150.0,0.00030058,4]
[377638927,1754472635627,-133.87889649,0.00030058,4]
[377638928,1754472635805,-16.12110351,0.00030058,4]
[377638929,1754472635815,-150.0,0.00030058,4]
[377638930,1754472635825,-150.0,0.00030058,4]
[377638931,1754472635834,-150.0,0.00030058,4]
[377638932,1754472635843,-150.0,0.00030058,4]
[377638933,1754472635853,-150.0,0.00030058,4]
[377638934,1754472635862,-150.0,0.00030058,4]
[377638935,1754472635871,-150.0,0.00030058,4]
[377638936,1754472635880,-150.0,0.00030058,4]
[377638937,1754472635890,-150.0,0.00030148,7]
[377638938,1754472635899,-150.0,0.00030209,7]
[377638939,1754472635909,-150.0,0.00030238,7]
[377638940,1754472635918,-150.0,0.0003028,7]
[377638941,1754472635927,-150.0,0.00030328,7]
[377638942,1754472635936,-150.0,0.00030361,7]
[377638943,1754472635946,-150.0,0.00030361,7]
[377638944,1754472635955,-150.0,0.00030392,7]
[377638945,1754472635965,-351.0,0.00030396,2]
[377638946,1754472635974,-534.96865012,0.00030407,2]
[377638947,1754472635986,-1652.8974595,0.00030407,2]
[377638948,1754472635996,-150.0,0.00030419,7]
[377638949,1754472636005,-218.27,0.00030433,2]
[377638950,1754472636015,-2930.08859726,0.00030437,2]
[377638951,1754472636095,-551.38865818,0.00030437,2]
[377638952,1754472636737,-1834.98957114,0.00030437,2]
[377638953,1754472636749,-570.3,0.00030437,2]
[377638954,1754472636797,-3956.31091651,0.00030437,2]
[377638955,1754472636809,-485.98244107,0.00030437,2]
[377638956,1754472636821,-1224.76840754,0.00030437,2]
[377639244,1754472641055,-888.0,0.0002837,3]
[377639246,1754472641066,-3026.70434461,0.00030437,2]
[377639251,1754472641099,-281.55,0.00030437,2]
[377639268,1754472641249,-9037.91706369,0.00030437,2]
[377639270,1754472641260,-150.0,0.00030503,7]
[377639272,1754472641272,-150.0,0.00030509,7]
[377639274,1754472641281,-150.0,0.00030513,7]
[377639276,1754472641290,-150.0,0.00030535,7]
[377639278,1754472641299,-150.0,0.00030599,7]
[377639280,1754472641309,-1776.0,0.0003061,3]
[377639282,1754472641318,-178.0,0.00030637,2]
[377639284,1754472641327,-151.0,0.00030662,3]
[377639286,1754472641336,-150.0,0.00030665,7]
[377639288,1754472641347,-150.0,0.00030665,7]
[377639290,1754472641356,-150.0,0.00030689,7]
[377639292,1754472641365,-150.0,0.00030725,7]
[377639294,1754472641374,-150.0,0.00030725,7]
[377639295,1754472641383,-150.0,0.00030725,7]
[377639297,1754472641393,-218.27,0.00030738,2]
[377639299,1754472641403,-150.0,0.0003078,7]
[377639301,1754472641412,-1282.0,0.00030801,2]
[377639303,1754472641421,-250.0,0.00030816,2]
[377639306,1754472641431,-150.0,0.00030817,7]
[377639307,1754472641440,-150.0,0.0003087,7]
[377639309,1754472641449,-150.0,0.00030892,7]
[377639311,1754472641458,-888.0,0.00030937,3]
[377639313,1754472641467,-150.0,0.00030948,7]
[377639315,1754472641476,-299.0,0.00030954,2]
[377639317,1754472641485,-150.0,0.0003096,7]
[377639319,1754472641494,-150.0,0.00030968,7]
[377639321,1754472641503,-150.0,0.00030968,7]
[377639323,1754472641512,-332.94225214,0.00031,5]
[377639325,1754472641522,-150.0,0.00031012,7]
[377639327,1754472641532,-150.0,0.0003105,7]
[377639329,1754472641542,-150.0,0.00031059,7]
[377639331,1754472641551,-150.0,0.0003112,7]
[377639333,1754472641560,-150.0,0.00031141,7]
[377639335,1754472641569,-150.0,0.00031171,7]
[377639337,1754472641578,-819.70450083,0.0003122,2]
[377639339,1754472641588,-150.0,0.00031231,7]
[377639341,1754472641597,-150.0,0.00031272,7]
[377639342,1754472641606,-150.0,0.00031272,7]
[377639343,1754472641615,-819.70450083,0.00031321,2]
[377639344,1754472641624,-150.0,0.00031321,7]
[377639345,1754472641634,-150.0,0.00031393,7]
[377639346,1754472641643,-150.0,0.00031393,7]
[377639347,1754472641652,-150.0,0.00031393,7]
[377639348,1754472641661,-150.0,0.00031411,7]
[377639349,1754472641671,-150.0,0.00031424,7]
[377639350,1754472641680,-9999.99,0.00031426,2]
[377639351,1754472641690,-7042.03,0.00031426,2]
[377639352,1754472641699,-299.99,0.00031426,12]
[377639353,1754472641708,-150.99,0.00031426,2]
[377639354,1754472641718,-150.99,0.00031426,2]
[377639355,1754472641727,-1505.06,0.00031426,2]
[377639356,1754472641737,-339.18,0.00031426,2]
[377639357,1754472641747,-999.99,0.00031426,2]
[377639358,1754472641757,-9999.99,0.00031426,2]
[377639359,1754472641766,-1504.86,0.00031426,2]
[377639360,1754472641775,-9999.99,0.00031426,2]
[377639361,1754472641784,-150.0,0.00031489,7]
[377639362,1754472641793,-150.0,0.00031502,7]
[377639363,1754472641803,-2648.65443699,0.0003156,120]
[377639364,1754472641812,-150.0,0.00031576,7]
[377639365,1754472641821,-150.0,0.00031576,7]
[377639366,1754472641831,-150.0,0.00031592,7]
[377639367,1754472641840,-150.0,0.00031616,7]
[377639368,1754472641850,-150.0,0.00031682,7]
[377639369,1754472641859,-819.70450083,0.00031685,2]
[377639370,1754472641868,-1171.89940465,0.00031696,25]
[377639371,1754472641878,-150.0,0.00031727,7]
[377639372,1754472641887,-150.0,0.00031727,7]
[377639373,1754472641898,-150.0,0.00031727,7]
[377639374,1754472641908,-150.0,0.00031773,7]
[377639375,1754472641919,-127467.2,0.00031796,7]
[377639376,1754472641930,-211.52696026,0.00031796,7]
[377639377,1754472641941,-457.43778519,0.00031796,7]
[377639378,1754472641950,-842.03384774,0.00031796,7]
[377639379,1754472641959,-400.05,0.00031829,4]
[377639380,1754472641969,-150.0,0.00031839,7]
[377639381,1754472641978,-150.0,0.00031863,7]
[377639382,1754472641988,-8475.53,0.00031864,2]
[377639383,1754472641997,-842.03384774,0.00031872,2]
[377639384,1754472642007,-211.52696026,0.00031872,2]
[377639385,1754472642016,-457.43778519,0.00031872,2]
[377639386,1754472642026,-150.0,0.00031879,7]
[377639387,1754472642035,-150.0,0.00031879,7]
[377639388,1754472642045,-150.0,0.00031953,7]
[377639389,1754472642054,-150.0,0.00031966,7]
[377639390,1754472642063,-819.70450083,0.00032014,2]
[377639391,1754472642072,-150.0,0.00032031,7]
[377639392,1754472642081,-150.0,0.00032043,7]
[377639393,1754472642091,-150.0,0.00032061,7]
[377639394,1754472642101,-150.0,0.00032061,7]
[377639395,1754472642110,-150.0,0.00032061,7]
[377639396,1754472642119,-150.0,0.00032134,7]
[377639397,1754472642129,-150.0,0.00032156,2]
[377639398,1754472642139,-819.70450083,0.00032164,2]
[377639399,1754472642152,-150.0,0.00032183,7]
[377639400,1754472642162,-150.0,0.00032183,7]
[377639401,1754472642171,-150.0,0.00032224,7]
[377639402,1754472642181,-525.75,0.00032245,2]
[377639403,1754472642194,-751.33233126,0.00032265,2]
[377639404,1754472642203,-150.0,0.00032284,7]
[377639406,1754472642212,-150.0,0.00032314,7]
[377639408,1754472642222,-150.0,0.00032335,7]
[377639410,1754472642231,-819.70450083,0.00032347,2]
[377639412,1754472642240,-151.0,0.00032356,4]
[377639413,1754472642250,-957.5804222,0.00032374,2]
[377639414,1754472642259,-150.0,0.00032395,7]
[377639415,1754472642270,-150.0,0.00032404,7]
[377639416,1754472642281,-150.0,0.00032443,7]
[377639417,1754472642290,-1163.82851313,0.00032484,2]
[377639418,1754472642299,-150.0,0.00032486,7]
[377639419,1754472642310,-150.0,0.00032486,7]
[377639420,1754472642320,-150.0,0.00032495,7]
[377639421,1754472642329,-500.0,0.000325,11]
[377639422,1754472642339,-150.0,0.00032507,7]
[377639423,1754472642349,-250.16323601,0.00032515,2]
[377639424,1754472642359,-150.0,0.00032562,7]
[377639425,1754472642369,-250.16323601,0.00032582,2]
[377639426,1754472642378,-150.0,0.00032585,7]
[377639427,1754472642388,-1370.07660406,0.00032593,2]
[377639428,1754472642398,-1000.0,0.000326,11]
[377639429,1754472642407,-150.0,0.00032638,7]
[377639430,1754472642417,-250.16323601,0.00032649,2]
[377639431,1754472642427,-150.0,0.00032675,7]
[377639432,1754472642437,-1171.89940465,0.00032679,28]
[377639433,1754472642446,-1500.0,0.000327,11]
[377639434,1754472642455,-1576.324695,0.00032703,2]
[377639435,1754472642465,-166.49,0.00032706,2]
[377639436,1754472642474,-250.16323601,0.00032716,2]
[377639437,1754472642484,-150.0,0.00032729,7]
[377639438,1754472642493,-150.0,0.00032729,7]
[377639439,1754472642503,-150.0,0.00032729,7]
[377639440,1754472642513,-150.0,0.00032765,7]
[377639441,1754472642523,-1520.74717677,0.00032766,2]
[377639442,1754472642532,-482.7540732,0.00032766,2]
[377639443,1754472642542,-5175.4463,0.00032772,2]
[377639444,1754472642552,-1964.7605,0.00032776,2]
[377639445,1754472642562,-2105.5716,0.00032776,2]
[377639446,1754472642571,-230.3407,0.00032776,2]
[377639447,1754472642582,-152.7069915,0.00032776,15]
[377639448,1754472642591,-250.16323601,0.00032782,2]
[377639449,1754472642601,-150.0,0.0003279,7]
[377639450,1754472642610,-150.0,0.0003279,7]
[377639451,1754472642620,-2000.0,0.000328,11]
[377639452,1754472642630,-525.75,0.00032804,2]
[377639453,1754472642640,-1782.57278593,0.00032812,2]
[377639454,1754472642650,-819.70450083,0.00032824,2]
[377639455,1754472642659,-250.16323601,0.00032849,2]
[377639456,1754472642669,-150.0,0.00032856,7]
[377639457,1754472642679,-1520.74717672,0.00032858,2]
[377639458,1754472642689,-210842.451133,0.00032866,2]
[377639459,1754472642698,-112069.370452,0.00032866,2]
[377639460,1754472642708,-191.422657,0.00032866,7]
[377639461,1754472642718,-191.422657,0.00032866,7]
[377639462,1754472642729,-151.0,0.00032866,7]
[377639463,1754472642740,-151.0,0.00032866,7]
[377639464,1754472642750,-191.422657,0.00032866,7]
[377639466,1754472642759,-191.422657,0.00032866,7]
[377639467,1754472642769,-151.0,0.00032866,7]
[377639468,1754472642780,-151.0,0.00032866,7]
[377639469,1754472642789,-151.0,0.00032866,7]
[377639470,1754472642799,-151.0,0.00032866,7]
[377639471,1754472642809,-151.0,0.00032866,7]
[377639472,1754472642818,-151.0,0.00032866,7]
[377639473,1754472642828,-151.0,0.00032866,7]
[377639474,1754472642838,-151.0,0.00032866,7]
[377639475,1754472642847,-151.0,0.00032866,7]
[377639476,1754472642857,-151.0,0.00032866,7]
[377639477,1754472642867,-151.0,0.00032866,7]
[377639478,1754472642876,-151.0,0.00032866,7]
[377639479,1754472642887,-151.0,0.00032866,7]
[377639480,1754472642896,-152.203874,0.00032866,7]
[377639481,1754472642906,-151.0,0.00032866,7]
[377639482,1754472642915,-151.0,0.00032866,7]
[377639483,1754472642925,-163.220844,0.00032866,7]
[377639484,1754472642936,-158.577895,0.00032866,7]
[377639485,1754472642946,-151.0,0.00032866,7]
[377639486,1754472642957,-208.439338,0.00032866,7]
[377639487,1754472642966,-151.0,0.00032866,7]
[377639488,1754472642976,-225.463491,0.00032866,7]
[377639489,1754472642985,-151.0,0.00032866,7]
[377639490,1754472642994,-153.673008,0.00032866,7]
[377639491,1754472643004,-151.0,0.00032866,7]
[377639492,1754472643014,-151.0,0.00032866,7]
[377639493,1754472643025,-284.186404,0.00032866,7]
[377639494,1754472643035,-284.186404,0.00032866,7]
[377639495,1754472643044,-284.186404,0.00032866,7]
[377639496,1754472643054,-284.186404,0.00032866,7]
[377639497,1754472643064,-151.0,0.00032866,7]
[377639498,1754472643073,-151.0,0.00032866,7]
[377639499,1754472643082,-151.0,0.00032866,7]
[377639500,1754472643092,-151.0,0.00032866,7]
[377639501,1754472643101,-151.0,0.00032866,7]
[377639502,1754472643112,-191.422657,0.00032872,7]